[Event "Titled Tuesday Blitz June 6 Late 2023"]
[White "Magallanes, Rey Jomar"]
[Black "Papayan, Oleg"]
[WhiteFideId "5205948"]
[BlackFideId "4193911"]
[WhiteElo "2297"]
[BlackElo "2167"]
[Result "0-1"]
[Round "7"]
[TimeControl "180+2"]
[Date "2023.06.07"]
[WhiteClock "0:01:27"]
[BlackClock "0:00:48"]
[Board "126"]

1. e4 {[%clk 0:03:00]}  e5 {[%clk 0:03:00]} 2. Nf3 {[%clk 0:03:00]}  Nc6 {[%clk 0:03:00]} 3. Bc4 {[%clk 0:03:00]}  Nf6 {[%clk 0:03:00]} 4. d3 {[%clk 0:03:00]}  Bc5 {[%clk 0:03:00]} 5. c3 {[%clk 0:03:00]}  O-O {[%clk 0:03:01]} 6. a4 {[%clk 0:03:01]}  a5 {[%clk 0:03:00]} 7. O-O {[%clk 0:03:00]}  d5 {[%clk 0:02:55]} 8. exd5 {[%clk 0:03:01]}  Nxd5 {[%clk 0:02:56]} 9. Re1 {[%clk 0:02:59]}  Bg4 {[%clk 0:02:54]} 10. Nbd2 {[%clk 0:02:57]}  Nb6 {[%clk 0:02:53]} 11. Bb5 {[%clk 0:02:53]}  Bd6 {[%clk 0:02:39]} 12. Ne4 {[%clk 0:02:52]}  f5 {[%clk 0:02:29]} 13. Qb3+ {[%clk 0:02:51]}  Kh8 {[%clk 0:02:28]} 14. Neg5 {[%clk 0:02:48]}  Qf6 {[%clk 0:02:10]} 15. h3 {[%clk 0:02:35]}  Bh5 {[%clk 0:02:10]} 16. Ne6 {[%clk 0:02:24]}  Bf7 {[%clk 0:01:53]} 17. Nfg5 {[%clk 0:02:19]}  Bg8 {[%clk 0:01:53]} 18. d4 {[%clk 0:02:11]}  h6 {[%clk 0:01:34]} 19. Bxc6 {[%clk 0:01:51]}  bxc6 {[%clk 0:01:33]} 20. dxe5 {[%clk 0:01:50]}  Bxe5 {[%clk 0:01:31]} 21. Rxe5 {[%clk 0:01:46]}  Qxe5 {[%clk 0:01:05]} 22. Nxf8 {[%clk 0:01:46]}  Qe1+ {[%clk 0:01:01]} 23. Kh2 {[%clk 0:01:45]}  Bxb3 {[%clk 0:00:57]} 24. Ng6+ {[%clk 0:01:45]}  Kg8 {[%clk 0:00:57]} 25. Be3 {[%clk 0:01:36]}  Qxa1 {[%clk 0:00:49]} 26. Ne7+ {[%clk 0:01:34]}  Kf8 {[%clk 0:00:49]} 27. Bc5 {[%clk 0:01:30]}  hxg5 {[%clk 0:00:50]} 28. Nxf5+ {[%clk 0:01:27]}  Kf7 {[%clk 0:00:48]} 0-1


[Site "https://www.chess.com"]

[Event "Titled Tuesday Blitz June 6 Late 2023"]
[White "Mikhalsky, Vladimir"]
[Black "mohsengabr2002"]
[WhiteFideId "14144352"]
[WhiteElo "2236"]
[BlackElo "2251"]
[Result "0-1"]
[Round "7"]
[TimeControl "180+2"]
[Date "2023.06.07"]
[WhiteClock "0:00:06"]
[BlackClock "0:00:56"]
[Board "128"]

1. c4 {[%clk 0:02:51]}  f6 {[%clk 0:02:58]} 2. d4 {[%clk 0:02:51]}  g6 {[%clk 0:02:58]} 3. h4 {[%clk 0:02:48]}  e6 {[%clk 0:02:58]} 4. h5 {[%clk 0:02:48]}  g5 {[%clk 0:02:59]} 5. e4 {[%clk 0:02:42]}  Nh6 {[%clk 0:02:58]} 6. Nf3 {[%clk 0:02:37]}  d6 {[%clk 0:02:57]} 7. Nc3 {[%clk 0:02:34]}  c6 {[%clk 0:02:57]} 8. Bd3 {[%clk 0:02:33]}  a6 {[%clk 0:02:53]} 9. e5 {[%clk 0:02:30]}  dxe5 {[%clk 0:02:49]} 10. dxe5 {[%clk 0:02:30]}  g4 {[%clk 0:02:49]} 11. exf6 {[%clk 0:02:10]}  gxf3 {[%clk 0:02:48]} 12. Qxf3 {[%clk 0:02:09]}  Nf7 {[%clk 0:02:44]} 13. Bf4 {[%clk 0:01:49]}  Nd7 {[%clk 0:02:43]} 14. O-O-O {[%clk 0:01:45]}  Qxf6 {[%clk 0:02:43]} 15. Ne4 {[%clk 0:01:42]}  Qd4 {[%clk 0:02:24]} 16. Bc2 {[%clk 0:01:33]}  Qxc4 {[%clk 0:02:22]} 17. Rhe1 {[%clk 0:01:27]}  Be7 {[%clk 0:02:20]} 18. Qg4 {[%clk 0:01:21]}  Qxa2 {[%clk 0:02:19]} 19. Nc3 {[%clk 0:01:16]}  Qa1+ {[%clk 0:02:14]} 20. Kd2 {[%clk 0:01:14]}  Qa5 {[%clk 0:02:13]} 21. Qxe6 {[%clk 0:01:14]}  Nde5 {[%clk 0:02:10]} 22. Rxe5 {[%clk 0:01:03]}  Qd8+ {[%clk 0:01:49]} 23. Ke3 {[%clk 0:00:50]}  Bxe6 {[%clk 0:01:45]} 24. Rxd8+ {[%clk 0:00:49]}  Nxd8 {[%clk 0:01:43]} 25. Ne4 {[%clk 0:00:41]}  O-O {[%clk 0:01:35]} 26. Bh6 {[%clk 0:00:39]}  Rf5 {[%clk 0:01:32]} 27. Rxe6 {[%clk 0:00:34]}  Nxe6 {[%clk 0:01:30]} 28. Bb3 {[%clk 0:00:34]}  Kf7 {[%clk 0:01:18]} 29. g4 {[%clk 0:00:34]}  Rb5 {[%clk 0:01:18]} 30. Bc4 {[%clk 0:00:33]}  Rd5 {[%clk 0:01:11]} 31. f4 {[%clk 0:00:30]}  b5 {[%clk 0:01:09]} 32. Bxd5 {[%clk 0:00:24]}  cxd5 {[%clk 0:01:07]} 33. Ng3 {[%clk 0:00:24]}  Bc5+ {[%clk 0:01:05]} 34. Kd3 {[%clk 0:00:24]}  Rg8 {[%clk 0:01:00]} 35. g5 {[%clk 0:00:22]}  Nxf4+ {[%clk 0:01:00]} 36. Kc3 {[%clk 0:00:20]}  Ke6 {[%clk 0:00:59]} 37. g6 {[%clk 0:00:19]}  hxg6 {[%clk 0:00:58]} 38. Bxf4 {[%clk 0:00:19]}  gxh5 {[%clk 0:00:58]} 39. Nxh5 {[%clk 0:00:19]}  Rg4 {[%clk 0:00:57]} 40. Bc1 {[%clk 0:00:17]}  Bd4+ {[%clk 0:00:57]} 41. Kd3 {[%clk 0:00:17]}  Be5 {[%clk 0:00:57]} 42. Ke2 {[%clk 0:00:15]}  Rg1 {[%clk 0:00:56]} 43. Be3 {[%clk 0:00:14]}  Rb1 {[%clk 0:00:54]} 44. Kf3 {[%clk 0:00:12]}  Rxb2 {[%clk 0:00:54]} 45. Kg4 {[%clk 0:00:11]}  Rb3 {[%clk 0:00:54]} 46. Bg5 {[%clk 0:00:11]}  a5 {[%clk 0:00:53]} 47. Nf4+ {[%clk 0:00:09]}  Bxf4 {[%clk 0:00:53]} 48. Kxf4 {[%clk 0:00:08]}  Rb4+ {[%clk 0:00:54]} 49. Kf3 {[%clk 0:00:08]}  a4 {[%clk 0:00:54]} 50. Bd2 {[%clk 0:00:07]}  Rb3+ {[%clk 0:00:55]} 51. Ke2 {[%clk 0:00:07]}  a3 {[%clk 0:00:56]} 52. Kd1 {[%clk 0:00:06]}  a2 {[%clk 0:00:56]} 0-1


[Site "https://www.chess.com"]

[Event "Titled Tuesday Blitz June 6 Late 2023"]
[White "The_Straightforward_Rook"]
[Black "campochess"]
[WhiteElo "2367"]
[BlackElo "2159"]
[Result "1-0"]
[Round "7"]
[TimeControl "180+2"]
[Date "2023.06.07"]
[WhiteClock "0:01:44"]
[BlackClock "0:01:17"]
[Board "129"]

1. d4 {[%clk 0:02:54]}  c5 {[%clk 0:02:59]} 2. d5 {[%clk 0:02:52]}  Nf6 {[%clk 0:02:58]} 3. c4 {[%clk 0:02:52]}  g6 {[%clk 0:02:58]} 4. Nc3 {[%clk 0:02:51]}  Bg7 {[%clk 0:02:58]} 5. e4 {[%clk 0:02:51]}  d6 {[%clk 0:02:58]} 6. Bd3 {[%clk 0:02:52]}  O-O {[%clk 0:02:58]} 7. Nf3 {[%clk 0:02:52]}  b5 {[%clk 0:02:51]} 8. cxb5 {[%clk 0:02:51]}  a6 {[%clk 0:02:51]} 9. a4 {[%clk 0:02:47]}  axb5 {[%clk 0:02:50]} 10. Bxb5 {[%clk 0:02:48]}  Ba6 {[%clk 0:02:42]} 11. Bd2 {[%clk 0:02:48]}  Bxb5 {[%clk 0:02:41]} 12. axb5 {[%clk 0:02:49]}  Nbd7 {[%clk 0:02:38]} 13. O-O {[%clk 0:02:49]}  Qb6 {[%clk 0:02:36]} 14. h3 {[%clk 0:02:39]}  Rfb8 {[%clk 0:02:32]} 15. Qb3 {[%clk 0:02:37]}  Ne8 {[%clk 0:02:31]} 16. Bg5 {[%clk 0:02:28]}  f6 {[%clk 0:02:21]} 17. Be3 {[%clk 0:02:24]}  Nc7 {[%clk 0:02:21]} 18. Nd2 {[%clk 0:02:17]}  Ne5 {[%clk 0:02:01]} 19. f4 {[%clk 0:02:12]}  Nd3 {[%clk 0:02:00]} 20. Nc4 {[%clk 0:02:11]}  Qb7 {[%clk 0:01:58]} 21. Na5 {[%clk 0:02:09]}  Qb6 {[%clk 0:01:54]} 22. Nc6 {[%clk 0:02:08]}  Re8 {[%clk 0:01:49]} 23. Rxa8 {[%clk 0:02:04]}  Nxa8 {[%clk 0:01:45]} 24. Na4 {[%clk 0:02:02]}  c4 {[%clk 0:01:44]} 25. Qxd3 {[%clk 0:01:55]}  cxd3 {[%clk 0:01:43]} 26. Nxb6 {[%clk 0:01:55]}  Nxb6 {[%clk 0:01:43]} 27. Bxb6 {[%clk 0:01:55]}  f5 {[%clk 0:01:43]} 28. e5 {[%clk 0:01:54]}  dxe5 {[%clk 0:01:41]} 29. fxe5 {[%clk 0:01:55]}  Bh6 {[%clk 0:01:38]} 30. Rd1 {[%clk 0:01:52]}  d2 {[%clk 0:01:37]} 31. Kf2 {[%clk 0:01:53]}  Kf7 {[%clk 0:01:28]} 32. Be3 {[%clk 0:01:51]}  f4 {[%clk 0:01:28]} 33. Bxd2 {[%clk 0:01:48]}  g5 {[%clk 0:01:28]} 34. Bb4 {[%clk 0:01:46]}  Bf8 {[%clk 0:01:26]} 35. d6 {[%clk 0:01:44]}  exd6 {[%clk 0:01:26]} 36. Bxd6 {[%clk 0:01:45]}  Bg7 {[%clk 0:01:25]} 37. b6 {[%clk 0:01:44]}  Bf8 {[%clk 0:01:17]} 38. b7 {[%clk 0:01:44]}  Bxd6 {[%clk 0:01:17]} 39. exd6 {[%clk 0:01:44]} 1-0


[Site "https://www.chess.com"]

[Event "Titled Tuesday Blitz June 6 Late 2023"]
[White "Ruiz Aguilar, Pablo Alexander"]
[Black "Vila Dupla, Aurelio"]
[WhiteFideId "4401352"]
[BlackFideId "2203383"]
[WhiteElo "2111"]
[BlackElo "2009"]
[Result "1/2-1/2"]
[Round "7"]
[TimeControl "180+2"]
[Date "2023.06.07"]
[WhiteClock "0:00:33"]
[BlackClock "0:00:12"]
[Board "132"]

1. e4 {[%clk 0:03:00]}  c5 {[%clk 0:02:56]} 2. Nf3 {[%clk 0:03:00]}  d6 {[%clk 0:02:54]} 3. d4 {[%clk 0:03:01]}  cxd4 {[%clk 0:02:54]} 4. Nxd4 {[%clk 0:03:01]}  Nf6 {[%clk 0:02:54]} 5. Nc3 {[%clk 0:03:02]}  g6 {[%clk 0:02:54]} 6. Be3 {[%clk 0:03:01]}  Bg7 {[%clk 0:02:54]} 7. f3 {[%clk 0:02:58]}  O-O {[%clk 0:02:54]} 8. Qd2 {[%clk 0:02:59]}  Nc6 {[%clk 0:02:54]} 9. Bc4 {[%clk 0:02:59]}  Bd7 {[%clk 0:02:53]} 10. O-O-O {[%clk 0:02:58]}  Ne5 {[%clk 0:02:53]} 11. Bb3 {[%clk 0:02:58]}  Qa5 {[%clk 0:02:53]} 12. Kb1 {[%clk 0:02:56]}  Rfc8 {[%clk 0:02:51]} 13. h4 {[%clk 0:02:55]}  Rxc3 {[%clk 0:02:50]} 14. Qxc3 {[%clk 0:02:53]}  Qxc3 {[%clk 0:02:50]} 15. bxc3 {[%clk 0:02:54]}  Rc8 {[%clk 0:02:51]} 16. Bd2 {[%clk 0:02:51]}  h5 {[%clk 0:02:48]} 17. Kb2 {[%clk 0:02:45]}  a5 {[%clk 0:02:47]} 18. a3 {[%clk 0:02:44]}  b5 {[%clk 0:02:39]} 19. Bg5 {[%clk 0:02:37]}  Kf8 {[%clk 0:02:20]} 20. Rhe1 {[%clk 0:02:34]}  Nh7 {[%clk 0:02:18]} 21. Be3 {[%clk 0:02:30]}  Nf6 {[%clk 0:02:05]} 22. Ne2 {[%clk 0:02:23]}  Nc6 {[%clk 0:01:36]} 23. Nd4 {[%clk 0:02:17]}  b4 {[%clk 0:01:32]} 24. Nxc6 {[%clk 0:02:12]}  Bxc6 {[%clk 0:01:26]} 25. axb4 {[%clk 0:02:08]}  axb4 {[%clk 0:01:26]} 26. e5 {[%clk 0:02:01]}  bxc3+ {[%clk 0:01:24]} 27. Kb1 {[%clk 0:01:58]}  dxe5 {[%clk 0:01:19]} 28. Bb6 {[%clk 0:01:50]}  e4 {[%clk 0:01:18]} 29. fxe4 {[%clk 0:01:36]}  Nxe4 {[%clk 0:01:16]} 30. Rd8+ {[%clk 0:01:32]}  Rxd8 {[%clk 0:01:15]} 31. Bxd8 {[%clk 0:01:33]}  Ke8 {[%clk 0:01:05]} 32. Ba5 {[%clk 0:01:30]}  Nd2+ {[%clk 0:00:58]} 33. Ka2 {[%clk 0:01:30]}  Bxg2 {[%clk 0:00:47]} 34. Re3 {[%clk 0:01:21]}  Nxb3 {[%clk 0:00:44]} 35. Kxb3 {[%clk 0:01:16]}  Bd5+ {[%clk 0:00:43]} 36. Kb4 {[%clk 0:01:12]}  Bf6 {[%clk 0:00:35]} 37. Rh3 {[%clk 0:01:09]}  Kd7 {[%clk 0:00:32]} 38. Bb6 {[%clk 0:01:06]}  e6 {[%clk 0:00:27]} 39. Bc5 {[%clk 0:01:03]}  Be4 {[%clk 0:00:24]} 40. Kb3 {[%clk 0:00:59]}  Bf5 {[%clk 0:00:22]} 41. Rh1 {[%clk 0:00:57]}  Kc6 {[%clk 0:00:22]} 42. Be3 {[%clk 0:00:55]}  Kd5 {[%clk 0:00:22]} 43. Bf2 {[%clk 0:00:48]}  Ke4 {[%clk 0:00:21]} 44. Be1 {[%clk 0:00:46]}  Kf3 {[%clk 0:00:20]} 45. Bxc3 {[%clk 0:00:46]}  Bxc3 {[%clk 0:00:16]} 46. Kxc3 {[%clk 0:00:46]}  e5 {[%clk 0:00:17]} 47. Kd2 {[%clk 0:00:44]}  e4 {[%clk 0:00:17]} 48. Re1 {[%clk 0:00:43]}  Kg4 {[%clk 0:00:13]} 49. c4 {[%clk 0:00:42]}  Kxh4 {[%clk 0:00:13]} 50. c5 {[%clk 0:00:43]}  Kg3 {[%clk 0:00:12]} 51. c6 {[%clk 0:00:43]}  h4 {[%clk 0:00:11]} 52. c7 {[%clk 0:00:43]}  h3 {[%clk 0:00:11]} 53. Rxe4 {[%clk 0:00:43]}  h2 {[%clk 0:00:11]} 54. Re1 {[%clk 0:00:41]}  Kg2 {[%clk 0:00:11]} 55. Re2+ {[%clk 0:00:37]}  Kg3 {[%clk 0:00:11]} 56. Re1 {[%clk 0:00:37]}  Kg2 {[%clk 0:00:12]} 57. Re2+ {[%clk 0:00:33]}  Kg3 {[%clk 0:00:12]} 58. Re1 {[%clk 0:00:33]} 1/2-1/2


[Site "https://www.chess.com"]

[Event "Titled Tuesday Blitz June 6 Late 2023"]
[White "Osmonbekov, Talaibek"]
[Black "Rian, Kapriaga"]
[WhiteFideId "2017253"]
[BlackFideId "7103263"]
[WhiteElo "2135"]
[BlackElo "2314"]
[Result "0-1"]
[Round "7"]
[TimeControl "180+2"]
[Date "2023.06.07"]
[WhiteClock "0:00:01"]
[BlackClock "0:00:11"]
[Board "133"]

1. d4 {[%clk 0:03:00]}  Nf6 {[%clk 0:02:56]} 2. Bf4 {[%clk 0:02:59]}  d5 {[%clk 0:02:55]} 3. Nc3 {[%clk 0:03:00]}  a6 {[%clk 0:02:36]} 4. e3 {[%clk 0:03:00]}  c6 {[%clk 0:02:34]} 5. Nf3 {[%clk 0:02:55]}  Bf5 {[%clk 0:02:33]} 6. Ne5 {[%clk 0:02:54]}  e6 {[%clk 0:02:31]} 7. g4 {[%clk 0:02:54]}  Bg6 {[%clk 0:02:28]} 8. h4 {[%clk 0:02:55]}  h6 {[%clk 0:02:18]} 9. Nxg6 {[%clk 0:02:53]}  fxg6 {[%clk 0:02:18]} 10. Bd3 {[%clk 0:02:54]}  Kf7 {[%clk 0:02:06]} 11. h5 {[%clk 0:02:51]}  g5 {[%clk 0:02:04]} 12. Bg6+ {[%clk 0:02:50]}  Kg8 {[%clk 0:02:00]} 13. Bg3 {[%clk 0:02:42]}  Bd6 {[%clk 0:01:59]} 14. Qf3 {[%clk 0:02:39]}  Bxg3 {[%clk 0:01:57]} 15. Qxg3 {[%clk 0:02:38]}  Nbd7 {[%clk 0:01:47]} 16. O-O-O {[%clk 0:02:31]}  Rc8 {[%clk 0:01:42]} 17. Kb1 {[%clk 0:02:27]}  c5 {[%clk 0:01:42]} 18. Qd6 {[%clk 0:02:17]}  Rc6 {[%clk 0:01:40]} 19. Qg3 {[%clk 0:02:12]}  cxd4 {[%clk 0:01:25]} 20. exd4 {[%clk 0:02:10]}  Nf8 {[%clk 0:01:25]} 21. Bd3 {[%clk 0:01:53]}  Qb6 {[%clk 0:01:21]} 22. Na4 {[%clk 0:01:42]}  Qc7 {[%clk 0:01:16]} 23. Qxc7 {[%clk 0:01:19]}  Rxc7 {[%clk 0:01:16]} 24. f3 {[%clk 0:01:20]}  Kf7 {[%clk 0:01:10]} 25. Rhe1 {[%clk 0:01:18]}  N8d7 {[%clk 0:01:07]} 26. Bg6+ {[%clk 0:01:12]}  Ke7 {[%clk 0:01:05]} 27. Re2 {[%clk 0:00:59]}  Rhc8 {[%clk 0:00:55]} 28. Rde1 {[%clk 0:00:56]}  Rc6 {[%clk 0:00:53]} 29. Bf5 {[%clk 0:00:55]}  Re8 {[%clk 0:00:21]} 30. Rxe6+ {[%clk 0:00:44]}  Rxe6 {[%clk 0:00:19]} 31. Rxe6+ {[%clk 0:00:43]}  Kd8 {[%clk 0:00:19]} 32. Rxe8+ {[%clk 0:00:38]}  Kxe8 {[%clk 0:00:18]} 33. b3 {[%clk 0:00:21]}  Ke7 {[%clk 0:00:18]} 34. c4 {[%clk 0:00:20]}  Kd6 {[%clk 0:00:17]} 35. Kc2 {[%clk 0:00:20]}  b5 {[%clk 0:00:15]} 36. cxb5 {[%clk 0:00:16]}  axb5 {[%clk 0:00:15]} 37. Nc3 {[%clk 0:00:16]}  b4 {[%clk 0:00:16]} 38. Na4 {[%clk 0:00:11]}  Nb8 {[%clk 0:00:14]} 39. Nc5 {[%clk 0:00:10]}  Nc6 {[%clk 0:00:14]} 40. Kd3 {[%clk 0:00:10]}  Ne7 {[%clk 0:00:13]} 41. Be6 {[%clk 0:00:01]}  Nc6 {[%clk 0:00:11]} 0-1


[Site "https://www.chess.com"]

[Event "Titled Tuesday Blitz June 6 Late 2023"]
[White "Vargas, Mauricio"]
[Black "Eggleston, Thomas A"]
[WhiteFideId "4404572"]
[BlackFideId "412139"]
[WhiteElo "1986"]
[BlackElo "2155"]
[Result "0-1"]
[Round "7"]
[TimeControl "180+2"]
[Date "2023.06.07"]
[WhiteClock "0:00:04"]
[BlackClock "0:01:20"]
[Board "136"]

1. e4 {[%clk 0:03:00]}  e6 {[%clk 0:03:00]} 2. f4 {[%clk 0:02:56]}  d5 {[%clk 0:03:00]} 3. e5 {[%clk 0:02:52]}  c5 {[%clk 0:03:00]} 4. Nf3 {[%clk 0:02:51]}  Nc6 {[%clk 0:03:00]} 5. Bb5 {[%clk 0:02:47]}  a6 {[%clk 0:02:58]} 6. Bxc6+ {[%clk 0:02:41]}  bxc6 {[%clk 0:02:59]} 7. d3 {[%clk 0:02:35]}  h5 {[%clk 0:02:52]} 8. O-O {[%clk 0:02:35]}  h4 {[%clk 0:02:52]} 9. h3 {[%clk 0:02:35]}  Be7 {[%clk 0:02:52]} 10. Nc3 {[%clk 0:02:33]}  Nh6 {[%clk 0:02:51]} 11. Qe1 {[%clk 0:02:31]}  Nf5 {[%clk 0:02:51]} 12. Rf2 {[%clk 0:02:28]}  a5 {[%clk 0:02:51]} 13. Na4 {[%clk 0:02:27]}  Ba6 {[%clk 0:02:50]} 14. b3 {[%clk 0:02:16]}  c4 {[%clk 0:02:49]} 15. dxc4 {[%clk 0:02:15]}  dxc4 {[%clk 0:02:48]} 16. Rd2 {[%clk 0:02:13]}  Qc7 {[%clk 0:02:48]} 17. Kh2 {[%clk 0:02:03]}  cxb3 {[%clk 0:02:34]} 18. cxb3 {[%clk 0:01:59]}  Bb4 {[%clk 0:02:32]} 19. Qe4 {[%clk 0:01:47]}  Ng3 {[%clk 0:02:20]} 20. Qe1 {[%clk 0:01:21]}  Nf1+ {[%clk 0:02:20]} 21. Kh1 {[%clk 0:01:15]}  Nxd2 {[%clk 0:02:11]} 22. Nxd2 {[%clk 0:01:13]}  Bb5 {[%clk 0:02:02]} 23. Nb2 {[%clk 0:01:04]}  Rd8 {[%clk 0:01:57]} 24. Nbc4 {[%clk 0:01:01]}  Bxc4 {[%clk 0:01:56]} 25. bxc4 {[%clk 0:00:59]}  Qd7 {[%clk 0:01:55]} 26. Qe4 {[%clk 0:00:46]}  Bxd2 {[%clk 0:01:49]} 27. Bxd2 {[%clk 0:00:40]}  Qxd2 {[%clk 0:01:49]} 28. Qxc6+ {[%clk 0:00:40]}  Qd7 {[%clk 0:01:49]} 29. Qc5 {[%clk 0:00:33]}  Rc8 {[%clk 0:01:33]} 30. Qxa5 {[%clk 0:00:26]}  O-O {[%clk 0:01:31]} 31. Qe1 {[%clk 0:00:20]}  Qd4 {[%clk 0:01:29]} 32. Rd1 {[%clk 0:00:15]}  Qxf4 {[%clk 0:01:27]} 33. Rc1 {[%clk 0:00:12]}  Rxc4 {[%clk 0:01:25]} 34. Rxc4 {[%clk 0:00:11]}  Qxc4 {[%clk 0:01:25]} 35. a3 {[%clk 0:00:09]}  Rb8 {[%clk 0:01:22]} 36. Kh2 {[%clk 0:00:06]}  Qf4+ {[%clk 0:01:20]} 37. Kh1 {[%clk 0:00:04]}  Rc8 {[%clk 0:01:20]} 0-1


[Site "https://www.chess.com"]

[Event "Titled Tuesday Blitz June 6 Late 2023"]
[White "Miller, Ike S"]
[Black "el_sporco"]
[WhiteFideId "2022532"]
[WhiteElo "2119"]
[BlackElo "2409"]
[Result "0-1"]
[Round "7"]
[TimeControl "180+2"]
[Date "2023.06.07"]
[WhiteClock "0:00:37"]
[BlackClock "0:02:04"]
[Board "138"]

1. d4 {[%clk 0:02:57]}  Nf6 {[%clk 0:02:59]} 2. c4 {[%clk 0:02:57]}  e6 {[%clk 0:02:59]} 3. Nc3 {[%clk 0:02:58]}  Bb4 {[%clk 0:02:59]} 4. Qc2 {[%clk 0:02:58]}  b6 {[%clk 0:02:57]} 5. a3 {[%clk 0:02:54]}  Bxc3+ {[%clk 0:02:56]} 6. Qxc3 {[%clk 0:02:55]}  Bb7 {[%clk 0:02:56]} 7. Bg5 {[%clk 0:02:55]}  O-O {[%clk 0:02:56]} 8. e3 {[%clk 0:02:54]}  h6 {[%clk 0:02:57]} 9. Bh4 {[%clk 0:02:54]}  g5 {[%clk 0:02:57]} 10. Bg3 {[%clk 0:02:52]}  Ne4 {[%clk 0:02:58]} 11. Qc2 {[%clk 0:02:50]}  d6 {[%clk 0:02:57]} 12. Bd3 {[%clk 0:02:13]}  f5 {[%clk 0:02:56]} 13. Ne2 {[%clk 0:02:04]}  Nd7 {[%clk 0:02:53]} 14. f3 {[%clk 0:01:59]}  Nxg3 {[%clk 0:02:48]} 15. Nxg3 {[%clk 0:01:56]}  Kg7 {[%clk 0:02:49]} 16. O-O {[%clk 0:01:55]}  Nf6 {[%clk 0:02:48]} 17. d5 {[%clk 0:01:54]}  f4 {[%clk 0:02:44]} 18. Ne4 {[%clk 0:01:30]}  Nxe4 {[%clk 0:02:42]} 19. Bxe4 {[%clk 0:01:27]}  exd5 {[%clk 0:02:30]} 20. cxd5 {[%clk 0:01:18]}  fxe3 {[%clk 0:02:21]} 21. Qc3+ {[%clk 0:01:18]}  Qf6 {[%clk 0:02:20]} 22. Qxc7+ {[%clk 0:01:10]}  Rf7 {[%clk 0:02:20]} 23. Qc3 {[%clk 0:01:10]}  Qxc3 {[%clk 0:02:15]} 24. bxc3 {[%clk 0:01:11]}  Rc7 {[%clk 0:02:15]} 25. Rac1 {[%clk 0:01:02]}  Rac8 {[%clk 0:02:14]} 26. f4 {[%clk 0:00:49]}  Rxc3 {[%clk 0:02:14]} 27. Rxc3 {[%clk 0:00:49]}  Rxc3 {[%clk 0:02:14]} 28. fxg5 {[%clk 0:00:50]}  hxg5 {[%clk 0:02:15]} 29. Rf5 {[%clk 0:00:46]}  Rc1+ {[%clk 0:02:12]} 30. Rf1 {[%clk 0:00:46]}  Rxf1+ {[%clk 0:02:11]} 31. Kxf1 {[%clk 0:00:46]}  Kf6 {[%clk 0:02:11]} 32. Ke2 {[%clk 0:00:46]}  Ke5 {[%clk 0:02:12]} 33. Kxe3 {[%clk 0:00:46]}  Bxd5 {[%clk 0:02:12]} 34. Bxd5 {[%clk 0:00:38]}  Kxd5 {[%clk 0:02:12]} 35. g3 {[%clk 0:00:37]}  Ke5 {[%clk 0:02:10]} 36. h4 {[%clk 0:00:37]}  gxh4 {[%clk 0:02:10]} 37. gxh4 {[%clk 0:00:38]}  Kf5 {[%clk 0:02:07]} 38. Kd4 {[%clk 0:00:37]}  b5 {[%clk 0:02:04]} 0-1


[Site "https://www.chess.com"]

[Event "Titled Tuesday Blitz June 6 Late 2023"]
[White "Nakamura, Hikaru"]
[Black "Deac, Bogdan-Daniel"]
[WhiteFideId "2016192"]
[BlackFideId "1226380"]
[WhiteElo "2874"]
[BlackElo "2644"]
[Result "1-0"]
[Round "8"]
[TimeControl "180+2"]
[Date "2023.06.07"]
[WhiteClock "0:00:19"]
[BlackClock "0:00:03"]
[Board "2"]

1. g3 {[%clk 0:03:00]}  d5 {[%clk 0:02:58]} 2. Bg2 {[%clk 0:03:01]}  e5 {[%clk 0:02:58]} 3. d3 {[%clk 0:03:01]}  Nc6 {[%clk 0:02:59]} 4. Nc3 {[%clk 0:03:02]}  d4 {[%clk 0:02:55]} 5. Nb1 {[%clk 0:03:01]}  Be6 {[%clk 0:02:55]} 6. c3 {[%clk 0:03:01]}  Qd7 {[%clk 0:02:49]} 7. Nf3 {[%clk 0:02:56]}  f6 {[%clk 0:02:49]} 8. Nbd2 {[%clk 0:02:52]}  Nge7 {[%clk 0:02:32]} 9. Nb3 {[%clk 0:02:49]}  Ng6 {[%clk 0:02:20]} 10. Bd2 {[%clk 0:02:42]}  dxc3 {[%clk 0:02:04]} 11. Bxc3 {[%clk 0:02:33]}  Bh3 {[%clk 0:02:03]} 12. Bxh3 {[%clk 0:02:30]}  Qxh3 {[%clk 0:02:04]} 13. Qc2 {[%clk 0:02:30]}  O-O-O {[%clk 0:01:40]} 14. O-O-O {[%clk 0:02:24]}  Qe6 {[%clk 0:01:17]} 15. Kb1 {[%clk 0:02:22]}  Kb8 {[%clk 0:01:14]} 16. Rc1 {[%clk 0:02:22]}  Bd6 {[%clk 0:01:12]} 17. Nbd2 {[%clk 0:02:18]}  Nge7 {[%clk 0:01:10]} 18. Ne4 {[%clk 0:01:51]}  Rhe8 {[%clk 0:01:02]} 19. Rhd1 {[%clk 0:01:43]}  Nd5 {[%clk 0:01:01]} 20. a3 {[%clk 0:01:34]}  h6 {[%clk 0:00:53]} 21. Bd2 {[%clk 0:01:12]}  f5 {[%clk 0:00:51]} 22. Nxd6 {[%clk 0:01:12]}  cxd6 {[%clk 0:00:48]} 23. e4 {[%clk 0:01:10]}  Nb6 {[%clk 0:00:40]} 24. Be3 {[%clk 0:01:10]}  Rc8 {[%clk 0:00:31]} 25. Bxb6 {[%clk 0:01:04]}  axb6 {[%clk 0:00:31]} 26. Qa4 {[%clk 0:01:03]}  Rf8 {[%clk 0:00:24]} 27. Rc3 {[%clk 0:00:45]}  fxe4 {[%clk 0:00:23]} 28. dxe4 {[%clk 0:00:45]}  Na5 {[%clk 0:00:18]} 29. Rxc8+ {[%clk 0:00:40]}  Qxc8 {[%clk 0:00:15]} 30. Rd3 {[%clk 0:00:35]}  Qg4 {[%clk 0:00:15]} 31. Nd2 {[%clk 0:00:26]}  Rxf2 {[%clk 0:00:14]} 32. Rxd6 {[%clk 0:00:26]}  Qe2 {[%clk 0:00:09]} 33. Qe8+ {[%clk 0:00:20]}  Ka7 {[%clk 0:00:08]} 34. Rd8 {[%clk 0:00:21]}  b5 {[%clk 0:00:04]} 35. Ra8+ {[%clk 0:00:20]}  Kb6 {[%clk 0:00:04]} 36. Qd8+ {[%clk 0:00:21]}  Kc5 {[%clk 0:00:03]} 37. b4+ {[%clk 0:00:19]} 1-0


[Site "https://www.chess.com"]